fUST/lending_fUST_20260310
["ID","MTS","AMOUNT","RATE_DAILY","PERIOD"]
[408094246,1773140559884,-4372.315,7.92e-05,2]
[408094266,1773140840116,-5000.0,7.444e-05,2]
[408094267,1773140840137,-5000.0,7.519e-05,2]
[408094268,1773140840161,-300.0,7.556e-05,2]
[408094269,1773140840182,-153.87407696,7.557e-05,2]
[408094270,1773140840200,-300.0,7.594e-05,2]
[408094271,1773140840220,-1310.9620953,7.595e-05,2]
[408094274,1773140948092,-5000.0,7.519e-05,2]
[408094275,1773140948115,-8784.6330175,7.595e-05,2]
[408094276,1773140948137,-500.0,7.873e-05,2]
[408094277,1773140948161,-500.0,7.873e-05,2]
[408094278,1773140948192,-835.5550786,7.899e-05,2]
[408094279,1773140958066,-3966.25659154,7.82e-05,2]
[408094280,1773140972098,-1033.74340846,7.82e-05,2]
[408094281,1773140972118,-155.70320412,7.873e-05,2]
[408094282,1773140972146,-500.0,7.873e-05,2]
[408094283,1773140972169,-542.18120768,7.873e-05,2]
[408094284,1773140972189,-263.23113679,7.873e-05,2]
[408094285,1773140972210,-500.0,7.873e-05,2]
[408094286,1773140972231,-500.0,7.873e-05,2]
[408094287,1773140972251,-528.25765773,7.873e-05,2]
[408094288,1773140972271,-500.0,7.873e-05,2]
[408094289,1773140972292,-270.63054627,7.873e-05,2]
[408094290,1773140972315,-10209.51496101,7.899e-05,2]
[408094320,1773141031569,-3787.05642125,7.82e-05,2]
[408094871,1773141037694,-1212.94357875,7.82e-05,2]
[408094872,1773141037704,-530.0,7.82e-05,2]
[408094873,1773141037713,-150.79659542,7.846e-05,2]
[408094874,1773141037722,-500.0,7.873e-05,2]
[408094875,1773141037732,-500.0,7.873e-05,2]
[408094876,1773141037741,-500.0,7.873e-05,2]
[408094877,1773141037751,-500.0,7.873e-05,2]
[408094878,1773141037760,-500.0,7.873e-05,2]
[408094879,1773141037769,-500.0,7.873e-05,2]
[408094880,1773141037779,-500.0,7.873e-05,2]
[408094881,1773141037788,-500.0,7.873e-05,2]
[408094882,1773141037797,-500.0,7.873e-05,2]
[408094884,1773141037806,-760011.18510341,7.899e-05,2]
[408094885,1773141037817,-2957.94987597,7.899e-05,2]
[408094886,1773141037827,-24514.72309898,7.899e-05,2]
[408094920,1773141040001,-752.23301139,7.82e-05,2]
[408094956,1773141040327,-249.88106012,7.82e-05,2]
[408094958,1773141040340,-469.07870949,7.82e-05,2]
[408095226,1773141042819,-1980.09561515,7.82e-05,2]
[408095479,1773141045562,-749.60693603,7.82e-05,2]
[408095481,1773141045571,-5000.0,7.82e-05,2]
[408095483,1773141045580,-941.99768107,7.899e-05,2]
[408095487,1773141045610,-62342.12957488,7.899e-05,2]
[408096192,1773141540710,-2000.0,7.211e-05,2]
[408096193,1773141542390,-2000.0,7.211e-05,2]
[408096194,1773141542700,-1000.0,7.211e-05,2]
[408096195,1773141542722,-170.5,7.284e-05,2]
[408096196,1773141550483,829.5,7.3e-05,2]
[408096197,1773141550505,2000.0,7.3e-05,2]
[408096198,1773141550526,2000.0,7.3e-05,2]
[408096199,1773141550547,170.5,7.3e-05,2]
[408096201,1773141582047,-1963.77943192,7.284e-05,2]
[408096202,1773141604371,161.19,2e-05,2]
[408096203,1773141630436,-2000.0,7.283e-05,2]
[408096204,1773141631214,-2000.0,7.283e-05,2]
[408096205,1773141631615,-1000.0,7.283e-05,2]
[408096206,1773141648760,-1718.96187245,7.283e-05,2]
[408096211,1773141783977,-300.0,6.999e-05,2]
[408096212,1773141783997,-1700.0,7e-05,2]
[408096213,1773141784471,-2000.0,7e-05,2]
[408096214,1773141784999,-2000.0,7e-05,2]
[408096215,1773141785498,-2000.0,7e-05,2]
[408096216,1773141785894,-2000.0,7e-05,2]
[408096217,1773141786372,-2000.0,7e-05,2]
[408096218,1773141786907,-2000.0,7e-05,2]
[408096219,1773141787200,-2000.0,7e-05,2]
[408096220,1773141787789,-2000.0,7e-05,2]
[408096221,1773141787862,-2000.0,7e-05,2]
[408096222,1773141788296,-2000.0,7e-05,2]
[408096223,1773141789567,-2000.0,7e-05,2]
[408096224,1773141810767,-2000.0,7e-05,2]
[408096225,1773141814083,-2000.0,7e-05,2]
[408096226,1773141814417,-2000.0,7e-05,2]
[408096227,1773141814789,-2000.0,7e-05,2]
[408096228,1773141815128,-2000.0,7e-05,2]
[408096229,1773141815735,-2000.0,7e-05,2]
[408096230,1773141815802,-2000.0,7e-05,2]
[408096231,1773141816217,-2000.0,7e-05,2]
[408096232,1773141816727,-2000.0,7e-05,2]
[408096233,1773141817055,-2000.0,7e-05,2]
[408096234,1773141817372,-2000.0,7e-05,2]
[408096235,1773141817734,-2000.0,7e-05,2]
[408096236,1773141818069,-2000.0,7e-05,2]
[408096237,1773141818407,-2000.0,7e-05,2]
[408096238,1773141818766,-2000.0,7e-05,2]
[408096239,1773141819081,-2000.0,7e-05,2]
[408096240,1773141819851,-2000.0,7e-05,2]
[408096241,1773141820901,-2000.0,7e-05,2]
[408096242,1773141823000,-2000.0,7e-05,2]
[408096243,1773141825278,-2000.0,7e-05,2]
[408096244,1773141831368,-700.0,7e-05,2]
[408096245,1773141916590,-300.0,6.999e-05,2]
[408096246,1773141916612,-300.0,6.999e-05,2]
[408096247,1773141916634,-300.0,6.999e-05,2]
[408096248,1773141916655,-300.0,6.999e-05,2]
[408096249,1773141916677,-1200.0,6.999e-05,2]
[408096250,1773141929589,-2000.0,7e-05,2]
[408096251,1773141942126,-275.57012061,7e-05,2]
[408096254,1773142026086,-300.0,6.999e-05,2]
[408096255,1773142026107,-152.68630521,7e-05,2]
[408096256,1773142026127,-12663.16223953,7e-05,2]
[408096275,1773142052089,-286.90141401,7e-05,2]
[408096280,1773142146111,-10000.0,6.718e-05,2]
[408096281,1773142146133,-300.0,6.999e-05,2]
[408096282,1773142146155,-114833.3286,7e-05,2]
[408096283,1773142153133,-176.25957713,7e-05,2]
[408096284,1773142154077,-78858.53466906,7e-05,2]
[408096285,1773142161102,-154942.3218,7e-05,2]
[408096286,1773142167101,-109530.0531038,7e-05,2]
[408096287,1773142173131,-101229.93011692,7e-05,2]
[408096290,1773142231728,-1200.0,6.999e-05,2]
[408096291,1773142231738,-300.0,6.999e-05,2]
[408096292,1773142231748,-501.01071191,6.999e-05,2]
[408096293,1773142231758,-500.0,6.999e-05,2]
[408096294,1773142231767,-500.0,6.999e-05,2]
[408096295,1773142231777,-500.0,6.999e-05,2]
[408096296,1773142231786,-500.0,6.999e-05,2]
[408096297,1773142231798,-500.0,6.999e-05,2]
[408096298,1773142231807,-500.0,6.999e-05,2]
[408096299,1773142231817,-500.0,6.999e-05,2]
[408096300,1773142231826,-500.0,6.999e-05,2]
[408096301,1773142231837,-500.0,6.999e-05,2]
[408096302,1773142231846,-500.0,6.999e-05,2]
[408096303,1773142231855,-500.0,6.999e-05,2]
[408096304,1773142231866,-500.0,6.999e-05,2]
[408096305,1773142231876,-500.0,6.999e-05,2]
[408096306,1773142231885,-500.0,6.999e-05,2]
[408096307,1773142231895,-500.0,6.999e-05,2]
[408096308,1773142231904,-500.0,6.999e-05,2]
[408096309,1773142231914,-500.0,6.999e-05,2]
[408096310,1773142231923,-500.0,6.999e-05,2]
[408096311,1773142231932,-500.0,6.999e-05,2]
[408096312,1773142231942,-500.0,6.999e-05,2]
[408096313,1773142231951,-500.0,6.999e-05,2]
[408096314,1773142231961,-500.0,6.999e-05,2]
[408096315,1773142231970,-500.0,6.999e-05,2]
[408096316,1773142231980,-500.0,6.999e-05,2]
[408096317,1773142231989,-500.0,6.999e-05,2]
[408096318,1773142231999,-500.0,6.999e-05,2]
[408096319,1773142232009,-500.0,6.999e-05,2]
[408096320,1773142232018,-500.0,6.999e-05,2]
[408096321,1773142232027,-500.0,6.999e-05,2]
[408096322,1773142232037,-500.0,6.999e-05,2]
[408096323,1773142232046,-500.0,6.999e-05,2]
[408096324,1773142232055,-500.0,6.999e-05,2]
[408096325,1773142232064,-500.0,6.999e-05,2]
[408096326,1773142232074,-500.0,6.999e-05,2]
[408096327,1773142232084,-500.0,6.999e-05,2]
[408096328,1773142232093,-500.0,6.999e-05,2]
[408096329,1773142232103,-422.63622726,6.999e-05,2]
[408096330,1773142232112,-500.0,6.999e-05,2]
[408096331,1773142232121,-500.0,6.999e-05,2]
[408096332,1773142232132,-500.0,6.999e-05,2]
[408096333,1773142232141,-500.0,6.999e-05,2]
[408096334,1773142232150,-500.0,6.999e-05,2]
[408096335,1773142232159,-500.0,6.999e-05,2]
[408096336,1773142232168,-500.0,6.999e-05,2]
[408096337,1773142232178,-500.0,6.999e-05,2]
[408096338,1773142232187,-500.0,6.999e-05,2]
[408096339,1773142232196,-500.0,6.999e-05,2]
[408096340,1773142232205,-500.0,6.999e-05,2]
[408096341,1773142232215,-384.92144359,6.999e-05,2]
[408096342,1773142232224,-500.0,6.999e-05,2]
[408096343,1773142232234,-500.0,6.999e-05,2]
[408096344,1773142232243,-500.0,6.999e-05,2]
[408096345,1773142232252,-500.0,6.999e-05,2]
[408096346,1773142232261,-500.0,6.999e-05,2]
[408096347,1773142232271,-500.0,6.999e-05,2]
[408096348,1773142232279,-500.0,6.999e-05,2]
[408096349,1773142232288,-500.0,6.999e-05,2]
[408096350,1773142232298,-500.0,6.999e-05,2]
[408096351,1773142232307,-500.0,6.999e-05,2]
[408096352,1773142232316,-500.0,6.999e-05,2]
[408096353,1773142232326,-519.0,7e-05,2]
[408096354,1773142232335,-22591.36912929,7e-05,2]
[408096355,1773142232347,-683.0,7e-05,2]
[408096356,1773142232358,-1324.44791251,7e-05,2]
[408096465,1773142237872,-500.0,6.999e-05,2]
[408096467,1773142237881,-500.0,6.999e-05,2]
[408096469,1773142237891,-500.0,6.999e-05,2]
[408096471,1773142237900,-500.0,6.999e-05,2]
[408096472,1773142237909,-500.0,6.999e-05,2]
[408096474,1773142237918,-500.0,6.999e-05,2]
[408096476,1773142237928,-2521.03616514,7e-05,2]
[408096479,1773142237943,-1663310.1435664,7e-05,2]
[408096481,1773142237954,-10653.1402446,7e-05,2]
[408096483,1773142237999,-6302.42641611,7e-05,2]
[408096484,1773142238011,-4248.32795475,7e-05,2]
[408096555,1773142240806,-74.38479088,6.999e-05,2]
[408096559,1773142240843,-425.61520912,6.999e-05,2]
[408096561,1773142240852,-679.013353,7e-05,2]
[408096708,1773142245753,-27206.19033451,7e-05,2]
[408096776,1773142262705,-1716.67361082,6.93e-05,2]
[408096782,1773142428041,-5000.0,6.861e-05,2]
[408096783,1773142428062,-154.53981569,6.895e-05,2]
[408096784,1773142436197,2145.46018431,6.9e-05,2]
[408096795,1773142803332,161.19,2e-05,2]
[408096796,1773143157107,-2773.0994408,6.243e-05,2]
[408096797,1773143157129,-5000.0,6.306e-05,2]
[408096798,1773143157150,-154.61649463,6.402e-05,2]
[408096799,1773143157171,-1200.0,6.498e-05,2]
[408096800,1773143157189,-513.0,6.499e-05,2]
[408096801,1773143157210,-300.0,6.631e-05,2]
[408096802,1773143157230,-954.336822,6.632e-05,2]
[408096803,1773143157251,-759.57174102,6.685e-05,2]
[408096804,1773143157271,-1459.61743584,6.785e-05,2]
[408096805,1773143157290,-277.78095789,6.8e-05,2]
[408096806,1773143157312,-954.336822,6.911e-05,2]
[408096807,1773143157335,-275.503348,6.983e-05,2]
[408096808,1773143157354,-500.0,6.983e-05,2]
[408096809,1773143157380,-500.0,6.983e-05,2]
[408096810,1773143157400,-500.0,6.983e-05,2]
[408096811,1773143157421,-500.0,6.983e-05,2]
[408096812,1773143157440,-500.0,6.983e-05,2]
[408096813,1773143157460,-500.0,6.983e-05,2]
[408096814,1773143157480,-500.0,6.983e-05,2]
[408096815,1773143157499,-500.05039856,6.983e-05,2]
[408096816,1773143157518,-500.0,6.983e-05,2]
[408096817,1773143157538,-500.0,6.983e-05,2]
[408096818,1773143157558,-500.0,6.983e-05,2]
[408096819,1773143157581,-500.0,6.983e-05,2]
[408096820,1773143157600,-473.32526547,6.983e-05,2]
[408096821,1773143157621,-500.0,6.983e-05,2]
[408096822,1773143157642,-641.6399779,6.983e-05,2]
[408096823,1773143157665,-500.0,6.983e-05,2]
[408096824,1773143157689,-500.0,6.983e-05,2]
[408096825,1773143157709,-500.0,6.983e-05,2]
[408096826,1773143157730,-500.0,6.983e-05,2]
[408096827,1773143157750,-500.0,6.983e-05,2]
[408096828,1773143157769,-500.0,6.983e-05,2]
[408096829,1773143157788,-328.24964386,6.983e-05,2]
[408096830,1773143157809,-500.0,6.983e-05,2]
[408096831,1773143157831,-500.0,6.983e-05,2]
[408096832,1773143157853,-500.0,6.983e-05,2]
[408096833,1773143157874,-500.0,6.983e-05,2]
[408096834,1773143157896,-500.0,6.983e-05,2]
[408096835,1773143157917,-500.0,6.983e-05,2]
[408096836,1773143157936,-500.0,6.983e-05,2]
[408096837,1773143157954,-529.04271104,6.983e-05,2]
[408096838,1773143157976,-500.0,6.983e-05,2]
[408096839,1773143157995,-500.0,6.983e-05,2]
[408096840,1773143158014,-500.0,6.983e-05,2]
[408096841,1773143158033,-500.0,6.983e-05,2]
[408096842,1773143158054,-234.09262083,6.983e-05,2]
[408096843,1773143158078,-500.0,6.983e-05,2]
[408096844,1773143158098,-270.63054627,6.983e-05,2]
[408096845,1773143158118,-500.0,6.983e-05,2]
[408096846,1773143158138,-212.17768654,6.983e-05,2]
[408096847,1773143158157,-500.0,6.983e-05,2]
[408096848,1773143158176,-263.23113679,6.983e-05,2]
[408096849,1773143158194,-500.0,6.983e-05,2]
[408096850,1773143158213,-500.0,6.983e-05,2]
[408096851,1773143158232,-500.0,6.983e-05,2]
[408096852,1773143158251,-500.0,6.983e-05,2]
[408096853,1773143158270,-500.0,6.983e-05,2]
[408096854,1773143158290,-500.0,6.999e-05,2]
[408096855,1773143158310,-500.0,6.999e-05,2]
[408096856,1773143158332,-500.0,6.999e-05,2]
[408096857,1773143158354,-500.0,6.999e-05,2]
[408096858,1773143158374,-500.0,6.999e-05,2]
[408096859,1773143158398,-500.0,6.999e-05,2]
[408096860,1773143158418,-500.0,6.999e-05,2]
[408096861,1773143158439,-500.0,6.999e-05,2]
[408096862,1773143158460,-500.0,6.999e-05,2]
[408096863,1773143158480,-500.0,6.999e-05,2]
[408096864,1773143158501,-500.0,6.999e-05,2]
[408096865,1773143158522,-500.0,6.999e-05,2]
[408096866,1773143158543,-500.0,6.999e-05,2]
[408096867,1773143158563,-292.26362273,6.999e-05,2]
[408096868,1773143158584,-500.0,6.999e-05,2]
[408096869,1773143158604,-500.0,6.999e-05,2]
[408096870,1773143158625,-500.0,6.999e-05,2]
[408096871,1773143158646,-500.0,6.999e-05,2]
[408096872,1773143158666,-500.0,6.999e-05,2]
[408096873,1773143158686,-500.0,6.999e-05,2]
[408096874,1773143158707,-500.0,6.999e-05,2]
[408096875,1773143158729,-500.0,6.999e-05,2]
[408096876,1773143158753,-500.0,6.999e-05,2]
[408096877,1773143158774,-500.0,6.999e-05,2]
[408096878,1773143158795,-500.0,6.999e-05,2]
[408096879,1773143158816,-500.0,6.999e-05,2]
[408096880,1773143158837,-500.0,6.999e-05,2]
[408096881,1773143158856,-500.0,6.999e-05,2]
[408096882,1773143158877,-500.0,6.999e-05,2]
[408096883,1773143158897,-500.0,6.999e-05,2]
[408096884,1773143158920,-438.49214436,6.999e-05,2]
[408096885,1773143158940,-500.0,6.999e-05,2]
[408096886,1773143158960,-500.0,6.999e-05,2]
[408096887,1773143158980,-500.0,6.999e-05,2]
[408096888,1773143159001,-500.0,6.999e-05,2]
[408096889,1773143159022,-500.0,6.999e-05,2]
[408096890,1773143159043,-88040.47976916,7e-05,2]
[408096891,1773143190865,-4968.97615393,6.913e-05,2]
[408096892,1773143190884,-500.0,6.983e-05,2]
[408096893,1773143190908,-500.0,6.983e-05,2]
[408096894,1773143190929,-300.0,6.999e-05,2]
[408096895,1773143190951,-499.99999999,6.999e-05,2]
[408096896,1773143204826,2455.24378805,7e-05,2]
[408096897,1773143215798,275.78005803,6.999e-05,2]
[408096898,1773143225089,-5000.0,6.929e-05,2]
[408096899,1773143225111,-300.0,6.999e-05,2]
[408096900,1773143225134,-67.7823472,6.999e-05,2]
[408096901,1773143225156,-1144.68722071,7e-05,2]
[408096902,1773143234125,-500.0,6.983e-05,2]
[408096903,1773143234149,-500.0,6.983e-05,2]
[408096904,1773143234169,-500.0,6.983e-05,2]
[408096905,1773143234189,-500.0,6.983e-05,2]
[408096906,1773143234209,-500.0,6.983e-05,2]
[408096907,1773143234227,-501.87658063,6.983e-05,2]
[408096908,1773143234529,-206.80902735,6.999e-05,2]
[408096909,1773143234551,-500.0,6.999e-05,2]
[408096910,1773143234571,-500.0,6.999e-05,2]
[408096911,1773143234591,-500.0,6.999e-05,2]
[408096912,1773143234609,-500.0,6.999e-05,2]
[408096913,1773143234629,-500.0,6.999e-05,2]
[408096914,1773143234648,-500.0,6.999e-05,2]
[408096915,1773143234668,-500.0,6.999e-05,2]
[408096916,1773143234687,-500.0,6.999e-05,2]
[408096917,1773143234707,-500.0,6.999e-05,2]
[408096918,1773143234728,-500.0,6.999e-05,2]
[408096919,1773143234749,-500.0,6.999e-05,2]
[408096920,1773143234784,-500.0,6.999e-05,2]
[408096921,1773143234808,-500.0,6.999e-05,2]
[408096922,1773143234829,-500.0,6.999e-05,2]
[408096923,1773143234851,-500.0,6.999e-05,2]
[408096924,1773143234872,-500.0,6.999e-05,2]
[408096925,1773143234894,-500.0,6.999e-05,2]
[408096926,1773143234915,-500.0,6.999e-05,2]
[408096927,1773143234936,-500.0,6.999e-05,2]
[408096928,1773143234956,-500.0,6.999e-05,2]
[408096929,1773143234977,-500.0,6.999e-05,2]
[408096930,1773143234998,-500.0,6.999e-05,2]
[408096931,1773143235020,-500.0,6.999e-05,2]
[408096932,1773143235041,-500.0,6.999e-05,2]
[408096933,1773143235062,-500.0,6.999e-05,2]
[408096934,1773143235083,-500.0,6.999e-05,2]
[408096935,1773143235106,-620.47009914,6.999e-05,2]
[408096936,1773143235127,-500.0,6.999e-05,2]
[408096937,1773143235157,-500.0,6.999e-05,2]
[408096938,1773143235178,-500.0,6.999e-05,2]
[408096939,1773143235200,-500.0,6.999e-05,2]
[408096940,1773143235220,-500.0,6.999e-05,2]
[408096941,1773143235240,-500.0,6.999e-05,2]
[408096942,1773143235261,-500.0,6.999e-05,2]
[408096943,1773143235281,-500.0,6.999e-05,2]
[408096944,1773143235302,-500.0,6.999e-05,2]
[408096945,1773143235328,-500.0,6.999e-05,2]
[408096946,1773143235352,-500.0,6.999e-05,2]
[408096947,1773143235374,-500.0,6.999e-05,2]
[408096948,1773143235395,-69988.15867416,7e-05,2]
[408096949,1773143235468,2571.44,2.001e-05,2]
[408096950,1773143238080,-500.0,6.983e-05,2]
[408096951,1773143238105,-408.49518185,6.983e-05,2]
[408096952,1773143238126,-528.32017505,6.983e-05,2]
[408096953,1773143238148,-500.0,6.999e-05,2]
[408096954,1773143238171,-98652.0089221,7e-05,2]
[408096955,1773143250084,-500.0,6.983e-05,2]
[408096956,1773143250108,-500.0,6.983e-05,2]
[408096957,1773143250129,-500.0,6.999e-05,2]
[408096958,1773143250151,-500.0,6.999e-05,2]
[408096959,1773143250171,-500.0,6.999e-05,2]
[408096960,1773143250191,-500.0,6.999e-05,2]
[408096961,1773143250211,-500.0,6.999e-05,2]
[408096962,1773143250231,-500.0,6.999e-05,2]
[408096963,1773143250252,-500.0,6.999e-05,2]
[408096964,1773143250272,-500.0,6.999e-05,2]
[408096965,1773143250292,-500.0,6.999e-05,2]
[408096966,1773143250313,-123605.6363045,7e-05,2]
[408096967,1773143349126,-448.36093245,6.983e-05,2]
[408096968,1773143349146,-500.0,6.983e-05,2]
[408096969,1773143349165,-403.97180996,6.983e-05,2]
[408096970,1773143349183,-500.0,6.983e-05,2]
[408096971,1773143349203,-300.0,6.999e-05,2]
[408096972,1773143349223,-215.91646739,6.999e-05,2]
[408096973,1773143349243,-3902.1949422,7e-05,2]
[408097005,1773143431845,-1200.0,6.999e-05,2]
[408097007,1773143431854,-519.0,7e-05,2]
[408097009,1773143431863,-690.0,7e-05,2]
[408097011,1773143431873,-166.0,7e-05,2]
[408097013,1773143431882,-351.0,7e-05,2]
[408097015,1773143431890,-166.0,7e-05,2]
[408097017,1773143431899,-166.0,7e-05,2]
[408097019,1773143431908,-351.0,7e-05,2]
[408097021,1773143431917,-338.0,7e-05,2]
[408097023,1773143431926,-166.0,7e-05,2]
[408097025,1773143431935,-338.0,7e-05,2]
[408097027,1773143431944,-338.0,7e-05,2]
[408097029,1773143431952,-338.0,7e-05,2]
[408097031,1773143431962,-155.0,7e-05,2]
[408097033,1773143431971,-155.0,7e-05,2]
[408097035,1773143431980,-5739.536031,7e-05,2]
[408097037,1773143431993,-43663.26436668,7e-05,2]
[408097039,1773143432004,-3169.1363388,7e-05,2]
[408097168,1773143438147,-3411.12735701,7e-05,2]
[408097169,1773143438843,-10313.03493125,7e-05,2]
[408097186,1773143440604,-1968.99468497,7e-05,2]
[408097187,1773143440612,-151.52416474,7.047e-05,2]
[408097188,1773143440622,-166.0,7.094e-05,2]
[408097189,1773143440631,-690.0,7.094e-05,2]
[408097190,1773143440642,-166.0,7.094e-05,2]
[408097191,1773143440651,-690.0,7.094e-05,2]
[408097192,1773143440660,-166.0,7.094e-05,2]
[408097193,1773143440669,-166.0,7.094e-05,2]
[408097194,1773143440679,-690.0,7.094e-05,2]
[408097195,1773143440690,-172.0,7.094e-05,2]
[408097196,1773143440700,-351.0,7.094e-05,2]
[408097197,1773143440709,-166.0,7.094e-05,2]
[408097198,1773143440718,-690.0,7.094e-05,2]
[408097199,1773143440729,-338.0,7.094e-05,2]
[408097200,1773143440740,-351.0,7.094e-05,2]
[408097201,1773143440749,-166.0,7.094e-05,2]
[408097202,1773143440760,-690.0,7.094e-05,2]
[408097203,1773143440770,-351.0,7.094e-05,2]
[408097204,1773143440779,-338.0,7.094e-05,2]
[408097205,1773143440788,-166.0,7.094e-05,2]
[408097206,1773143440797,-690.0,7.094e-05,2]
[408097207,1773143440807,-338.0,7.094e-05,2]
[408097208,1773143440816,-166.0,7.094e-05,2]
[408097209,1773143440826,-351.0,7.094e-05,2]
[408097210,1773143440836,-338.0,7.094e-05,2]
[408097211,1773143440845,-690.0,7.094e-05,2]
[408097212,1773143440854,-351.0,7.094e-05,2]
[408097213,1773143440864,-172.0,7.094e-05,2]
[408097214,1773143440874,-338.0,7.094e-05,2]
[408097215,1773143440883,-690.0,7.094e-05,2]
[408097216,1773143440893,-166.0,7.094e-05,2]
[408097217,1773143440903,-351.0,7.094e-05,2]
[408097218,1773143440913,-338.0,7.094e-05,2]
[408097219,1773143440923,-338.0,7.094e-05,2]
[408097220,1773143440933,-166.0,7.094e-05,2]
[408097221,1773143440943,-166.0,7.094e-05,2]
[408097222,1773143440954,-62.55185079,7.094e-05,2]
[408097223,1773143440968,-103.44814921,7.094e-05,2]
[408097224,1773143440977,-266.939615,7.094e-05,2]
[408097225,1773143440987,-166.0,7.094e-05,2]
[408097226,1773143440996,-338.0,7.094e-05,2]
[408097227,1773143441006,-89.19576629,7.094e-05,2]
[408097228,1773143441111,-108.47215034,7.094e-05,2]
[408097238,1773143443939,-492.33208337,7.094e-05,2]
[408097239,1773143443948,-338.0,7.094e-05,2]
[408097240,1773143443957,-351.0,7.094e-05,2]
[408097241,1773143443967,-690.0,7.094e-05,2]
[408097242,1773143443976,-338.0,7.094e-05,2]
[408097243,1773143443986,-690.0,7.094e-05,2]
[408097244,1773143443995,-351.0,7.094e-05,2]
[408097245,1773143444004,-690.0,7.094e-05,2]
[408097246,1773143444014,-338.0,7.094e-05,2]
[408097247,1773143444023,-351.0,7.094e-05,2]
[408097248,1773143444033,-690.0,7.094e-05,2]
[408097249,1773143444042,-338.0,7.094e-05,2]
[408097250,1773143444052,-351.0,7.094e-05,2]
[408097251,1773143444061,-690.0,7.094e-05,2]
[408097252,1773143444070,-338.0,7.094e-05,2]
[408097253,1773143444079,-351.0,7.094e-05,2]
[408097254,1773143444088,-338.0,7.094e-05,2]
[408097255,1773143444098,-690.0,7.094e-05,2]
[408097256,1773143444107,-155.0,7.094e-05,2]
[408097257,1773143444116,-351.0,7.094e-05,2]
[408097258,1773143444126,-690.0,7.094e-05,2]
[408097259,1773143444137,-338.0,7.094e-05,2]
[408097260,1773143444151,-169.5647597,7.094e-05,2]
[408097261,1773143444160,-351.0,7.094e-05,2]
[408097262,1773143444170,-690.0,7.094e-05,2]
[408097263,1773143444181,-338.0,7.094e-05,2]
[408097264,1773143444190,-351.0,7.094e-05,2]
[408097265,1773143444199,-690.0,7.094e-05,2]
[408097266,1773143444209,-338.0,7.094e-05,2]
[408097267,1773143444222,-351.0,7.094e-05,2]
[408097268,1773143444231,-690.0,7.094e-05,2]
[408097269,1773143444240,-402.6013774,7.094e-05,2]
[408097270,1773143444249,-351.0,7.094e-05,2]
[408097271,1773143444259,-690.0,7.094e-05,2]
[408097272,1773143444267,-338.0,7.094e-05,2]
[408097273,1773143444276,-116.67273349,7.094e-05,2]
[408097274,1773143444288,-234.32726651,7.094e-05,2]
[408097275,1773143444298,-281.78877289,7.094e-05,2]
[408097283,1773143446242,-69.21122711,7.094e-05,2]
[408097284,1773143446251,-351.0,7.094e-05,2]
[408097285,1773143446261,-351.0,7.094e-05,2]
[408097286,1773143446270,-351.0,7.094e-05,2]
[408097287,1773143446279,-351.0,7.094e-05,2]
[408097288,1773143446287,-351.0,7.094e-05,2]
[408097289,1773143446296,-351.0,7.094e-05,2]
[408097290,1773143446305,-690.0,7.094e-05,2]
[408097291,1773143446314,-351.0,7.094e-05,2]
[408097292,1773143446323,-690.0,7.094e-05,2]
[408097293,1773143446332,-351.0,7.094e-05,2]
[408097294,1773143446341,-690.0,7.094e-05,2]
[408097295,1773143446351,-351.0,7.094e-05,2]
[408097296,1773143446361,-690.0,7.094e-05,2]
[408097297,1773143446371,-351.0,7.094e-05,2]
[408097298,1773143446380,-351.0,7.094e-05,2]
[408097299,1773143446389,-690.0,7.094e-05,2]
[408097300,1773143446399,-351.0,7.094e-05,2]
[408097301,1773143446408,-690.0,7.094e-05,2]